bitfinex/quotes_SOLUSD_20250814
["timestamp","ask_amount","ask_price","bid_price","bid_amount"]
[1755189141298,42.7,191.75,191.67,26.0]
[1755189141487,0.72,191.73,191.7,18.8688893]
[1755189141682,0.72,191.72,191.7,18.8688893]
[1755189142002,19.5888893,191.71,191.63,18.8988893]
[1755189142196,19.5888893,191.7,191.63,18.8988893]
[1755189142382,19.5888893,191.7,191.64,18.8688893]
[1755189142701,0.72,191.7,191.67,18.8688893]
[1755189142877,42.7,191.69,191.68,18.8688893]
[1755189143778,62.2888893,191.69,191.63,0.03]
[1755189143977,18.8688893,191.65,191.63,0.03]
[1755189144279,0.72,191.64,191.56,18.8688893]
[1755189144475,42.7,191.63,191.54,5.2206016]
[1755189144692,42.7,191.63,191.62,18.8688893]
[1755189144893,42.7,191.63,191.54,39.73210399]
[1755189145103,43.42,191.63,191.6,18.8688893]
[1755189145608,42.7,191.63,191.61,18.8688893]
[1755189145900,42.7,191.63,191.62,18.8688893]
[1755189146106,0.72,191.66,191.64,0.03]
[1755189146300,0.72,191.7,191.65,18.8688893]
[1755189146610,0.72,191.7,191.64,0.03]
[1755189146611,42.7,191.66,191.64,0.03]
[1755189147687,42.7,191.66,191.65,18.8688893]
[1755189147888,0.06,191.75,191.65,19.5488893]
[1755189148087,42.78,191.75,191.65,0.68]
[1755189148283,42.78,191.75,191.64,26.03]
[1755189148284,0.72,191.74,191.69,18.8688893]
[1755189148602,18.8688893,191.72,191.66,18.8688893]
[1755189148815,5.21648408,191.7,191.64,0.03]
[1755189148976,0.72,191.69,191.64,18.8988893]
[1755189149178,62.2888893,191.68,191.64,0.03]
[1755189149402,18.8688893,191.66,191.64,0.03]
[1755189149612,19.5888893,191.65,191.64,0.03]
[1755189149819,18.8688893,191.6,191.58,0.03]
[1755189149985,42.7,191.59,191.58,0.03]
[1755189150524,42.7,191.59,191.58,18.8988893]
[1755189151037,19.5588893,191.68,191.58,24.11864083]
[1755189151181,42.7,191.67,191.64,18.8688893]
[1755189151381,42.7,191.67,191.58,5.92975153]
[1755189151382,42.7,191.67,191.66,18.8688893]
[1755189151878,43.39,191.67,191.65,18.8688893]
[1755189152410,43.39,191.67,191.64,18.8688893]
[1755189152914,42.7,191.67,191.66,18.8688893]
[1755189153284,42.7,191.67,191.66,24.08646208]
[1755189153808,0.75,191.75,191.66,24.76646208]
[1755189154014,42.7,191.74,191.67,26.68]
[1755189154389,42.7,191.74,191.73,18.8688893]
[1755189154982,0.06,191.75,191.73,18.8688893]
[1755189154983,0.06,191.75,191.73,24.08455716]
[1755189155188,0.06,191.75,191.74,19.5488893]
[1755189155425,0.06,191.75,191.74,50.8888893]
[1755189155788,0.06,191.75,191.74,50.2088893]
[1755189155989,0.06,191.75,191.7,5.21625483]
[1755189156293,0.06,191.75,191.68,31.89675811]
[1755189156496,0.06,191.75,191.72,18.8688893]
[1755189156798,0.75,191.75,191.72,18.8688893]
[1755189156997,0.75,191.75,191.63,13.04537769]
[1755189156998,19.5588893,191.74,191.62,5.89866193]
[1755189157192,19.5588893,191.74,191.66,18.8688893]
[1755189157193,0.06,191.71,191.66,18.8688893]
[1755189157401,43.39,191.7,191.65,18.8688893]
[1755189157710,42.7,191.7,191.66,18.8688893]
[1755189157900,0.06,191.71,191.69,18.8688893]
[1755189158096,0.06,191.71,191.7,18.8688893]
[1755189158701,0.06,191.71,191.7,19.5488893]
[1755189158918,0.06,191.71,191.7,18.8688893]
[1755189160032,0.06,191.71,191.67,5.21730056]
[1755189160320,0.06,191.71,191.7,18.8688893]
[1755189163415,0.06,191.71,191.7,24.76537338]
[1755189163909,0.06,191.71,191.7,43.63426268]
[1755189164111,0.06,191.71,191.7,5.89648408]
[1755189164311,0.06,191.71,191.7,90.08047825]
[1755189164740,0.06,191.71,191.7,5.89648408]
[1755189164912,0.06,191.71,191.7,24.08537338]
[1755189165310,0.06,191.71,191.7,44.8688893]
[1755189165726,0.06,191.71,191.7,50.08537338]
[1755189166221,0.06,191.71,191.64,31.34]
[1755189166404,0.06,191.71,191.7,18.8688893]
[1755189167436,0.06,191.71,191.7,24.08537338]
[1755189168411,0.06,191.71,191.7,24.76537338]
[1755189168813,0.06,191.71,191.7,24.08537338]
[1755189169923,0.06,191.71,191.7,18.8688893]
[1755189170230,0.06,191.71,191.7,24.08537338]
[1755189170633,0.06,191.71,191.7,24.76537338]
[1755189171821,0.06,191.75,191.74,26.0]
[1755189172011,0.06,191.75,191.74,45.5488893]
[1755189172210,0.06,191.76,191.75,65.31510487]
[1755189172410,0.06,191.76,191.75,65.99510487]
[1755189172611,1e-08,191.76,191.75,65.99510487]
[1755189173033,1e-08,191.76,191.75,65.31510487]
[1755189173210,0.06,191.83,191.78,26.0]
[1755189173410,0.06,191.83,191.8,24.08265363]
[1755189173816,0.06,191.83,191.8,50.76265363]
[1755189174611,1e-08,191.81,191.8,39.8688692]
[1755189174823,0.06,191.83,191.82,26.0]
[1755189175027,42.66,191.9,191.86,44.8688893]
[1755189175227,0.69,191.93,191.86,44.8688893]
[1755189175734,37.54,191.98,191.86,44.8688893]
[1755189175735,0.69,191.96,191.89,26.0]
[1755189175943,0.69,191.96,191.95,18.8688893]
[1755189176148,42.66,191.97,191.95,18.8688893]
[1755189176339,0.69,192.01,191.96,18.8688893]
[1755189176510,0.69,192.01,192.0,18.8688893]
[1755189176923,0.69,192.01,191.96,26.0]
[1755189177123,0.1,192.03,192.0,18.8688893]
[1755189177439,0.1,192.03,192.02,18.8688893]
[1755189178325,0.79,192.03,192.02,18.8688893]
[1755189178533,0.1,192.03,192.01,26.0]
[1755189178850,0.1,192.03,192.02,18.8688893]
[1755189179416,0.1,192.03,192.02,44.8688893]
[1755189179636,0.1,192.03,192.02,50.07668015]
[1755189179848,0.69,192.13,192.05,26.0]
[1755189180016,0.69,192.13,192.12,18.8688893]
[1755189180446,0.69,192.17,192.12,18.8688893]
[1755189180611,42.62,192.2,192.15,18.8688893]
[1755189180811,0.72,192.16,192.14,18.8688893]
[1755189181058,0.72,192.16,192.13,18.8688893]
[1755189181244,0.72,192.15,192.13,18.8688893]
[1755189181458,0.72,192.15,192.14,18.8688893]
[1755189181653,0.72,192.15,192.09,18.8688893]
[1755189181819,0.72,192.15,192.04,26.0]
[1755189182018,0.72,192.15,192.14,18.8688893]
[1755189182350,42.62,192.2,192.14,18.8688893]
[1755189182647,5.20101939,192.27,192.19,18.8688893]
[1755189182847,10.0,192.32,192.13,0.71]
[1755189182848,0.72,192.24,192.16,26.0]
[1755189183054,0.72,192.24,192.23,18.8688893]
[1755189183349,0.72,192.24,192.15,26.0]
[1755189183537,0.72,192.24,192.23,18.8688893]
[1755189184238,0.72,192.24,192.2,18.8688893]
[1755189184555,5.92192972,192.24,192.19,18.8688893]
[1755189184849,33.97510487,192.22,192.07,15.10621557]
[1755189185060,0.72,192.21,192.11,26.0]
[1755189185244,0.72,192.21,192.19,18.8688893]
[1755189185418,0.72,192.2,192.19,18.8688893]
[1755189185754,0.72,192.24,192.19,18.8688893]
[1755189186078,0.72,192.24,192.08,42.58]
[1755189186079,0.72,192.23,192.09,13.01471948]
[1755189186344,18.8688893,192.19,192.13,18.8688893]
[1755189186518,43.28,192.18,192.13,18.8688893]
[1755189186721,0.72,192.17,192.15,18.8688893]
[1755189187345,42.56,192.18,192.09,26.0]
[1755189187543,42.56,192.18,192.07,26.0]
[1755189187544,5.20399666,192.16,192.07,26.0]
[1755189187769,15.82621557,192.15,192.02,0.71]
[1755189187968,34.69510487,192.14,192.08,18.8688893]
[1755189188267,43.28,192.13,192.12,18.8688893]
[1755189188431,0.72,192.21,192.12,19.5788893]
[1755189188635,0.72,192.21,192.2,18.8688893]
[1755189188937,0.72,192.21,192.19,18.8688893]
[1755189189136,0.72,192.21,192.2,18.8688893]
[1755189189435,0.72,192.21,192.19,18.8688893]
[1755189189757,0.72,192.2,192.19,18.8688893]
[1755189190463,0.06,192.22,192.19,18.8688893]
[1755189190659,0.78,192.22,192.2,18.8688893]
[1755189191093,0.72,192.21,192.19,18.8688893]
[1755189191561,0.06,192.22,192.2,18.8688893]
[1755189191738,0.72,192.21,192.14,26.0]
[1755189192049,0.72,192.21,192.11,26.0]
[1755189192239,19.5888893,192.21,192.15,18.8688893]
[1755189192442,0.72,192.2,192.18,18.8688893]
[1755189192672,0.06,192.22,192.19,18.8688893]
[1755189192959,0.06,192.22,192.21,18.8688893]
[1755189193337,0.78,192.22,192.14,26.0]
[1755189193544,19.6488893,192.22,192.16,18.8688893]
[1755189193762,5.92264294,192.21,192.16,18.8688893]
[1755189194063,0.72,192.2,192.17,18.8688893]
[1755189194247,5.20264294,192.21,192.1,0.71]
[1755189194248,0.72,192.19,192.12,5.20482515]
[1755189194437,42.52,192.18,192.16,18.8688893]
[1755189194643,0.78,192.22,192.17,18.8688893]
[1755189194877,62.1088893,192.21,192.12,5.20482515]
[1755189195082,18.8688893,192.19,192.07,0.71]
[1755189195288,15.82621557,192.2,192.11,18.8688893]
[1755189195289,18.8688893,192.17,192.11,18.8688893]
[1755189195460,42.52,192.16,192.11,18.8688893]
[1755189195654,0.72,192.15,192.11,18.8688893]
[1755189196160,42.52,192.16,192.08,5.20616409]
[1755189196161,42.52,192.16,192.13,18.8688893]
[1755189196554,43.24,192.16,192.13,18.8688893]
[1755189196754,0.72,192.15,192.12,18.8688893]
[1755189196990,15.10621557,192.14,192.02,0.74]
[1755189197163,15.10621557,192.14,192.03,18.8688893]
[1755189197164,18.8688893,192.09,192.03,18.8688893]
[1755189197488,43.22,192.08,192.04,18.8688893]
[1755189197711,0.72,192.13,192.07,18.8688893]
[1755189197858,0.72,192.13,192.06,5.20660582]
[1755189197859,42.5,192.12,192.11,18.8688893]
[1755189198060,43.22,192.12,192.09,18.8688893]
[1755189198269,43.22,192.12,192.06,18.8688893]
[1755189198270,0.72,192.11,192.06,18.8688893]
[1755189198460,0.72,192.11,192.07,18.8688893]
[1755189198685,0.72,192.11,192.08,18.8688893]
[1755189198997,42.5,192.1,192.08,18.8688893]
[1755189199161,42.5,192.1,192.07,18.8688893]
[1755189199361,42.5,192.1,192.04,5.20699302]
[1755189199565,0.72,192.09,192.06,18.8688893]
[1755189199890,42.5,192.1,192.03,5.20747009]
[1755189200096,0.72,192.12,192.09,18.8688893]
[1755189200297,42.5,192.11,192.1,18.8688893]
[1755189200599,42.5,192.11,192.02,26.03]
[1755189200600,15.10621557,192.1,192.02,0.03]
[1755189200896,0.72,192.09,192.02,0.03]
[1755189201061,26.0,192.12,192.08,18.8688893]
[1755189201268,43.22,192.11,192.07,18.8688893]
[1755189201465,42.5,192.11,192.08,18.8688893]
[1755189201678,42.5,192.11,192.02,5.94771593]
[1755189201679,5.20589307,192.09,192.02,5.23771593]
[1755189201867,21.03184449,192.1,192.05,18.8688893]
[1755189202081,0.72,192.09,192.05,18.8688893]
[1755189202488,0.72,192.09,192.02,0.03]
[1755189202489,0.72,192.09,192.07,18.8688893]
[1755189202985,42.5,192.11,192.08,18.8688893]
[1755189203189,42.5,192.11,192.1,18.8688893]
[1755189203687,42.5,192.11,192.1,24.78451137]
[1755189203992,0.72,192.2,192.1,37.79856654]
[1755189204191,0.06,192.21,192.19,18.8688893]
[1755189204397,42.5,192.2,192.14,0.71]
[1755189204766,0.06,192.21,192.14,1.23045383]
[1755189204977,0.06,192.21,192.19,26.0]
[1755189205175,0.06,192.21,192.2,0.71]
[1755189205589,0.06,192.21,192.2,19.5788893]
[1755189205786,0.06,192.21,192.2,24.78180293]
[1755189205988,1e-08,192.21,192.2,24.78180293]
[1755189206297,0.06,192.22,192.2,24.78180293]
[1755189206613,0.06,192.27,192.24,78.84399417]
[1755189206892,42.5,192.38,192.29,26.0]
[1755189207080,42.5,192.38,192.37,18.8688893]
[1755189208076,43.22,192.38,192.37,18.8688893]
[1755189208291,42.5,192.38,192.34,5.19901884]
[1755189208598,43.22,192.38,192.37,18.8688893]
[1755189208791,15.10621557,192.37,192.27,26.0]
[1755189208997,33.97510487,192.35,192.29,18.8688893]
[1755189209177,60.69328902,192.38,192.27,26.0]
[1755189209178,0.72,192.34,192.27,26.0]
[1755189209383,42.48,192.33,192.29,18.8688893]
[1755189209699,43.2,192.33,192.3,18.8688893]
[1755189210080,42.48,192.33,192.32,18.8688893]
[1755189210489,5.19667331,192.44,192.32,19.5788893]
[1755189210690,0.7,192.45,192.27,5.72106362]
[1755189210691,0.7,192.45,192.42,18.8688893]
[1755189210894,0.7,192.45,192.44,18.8688893]
[1755189211118,43.16,192.49,192.44,18.8688893]
[1755189211402,42.46,192.49,192.43,26.0]
[1755189211691,42.46,192.49,192.4,32.40896565]
[1755189211692,60.7,192.57,192.48,18.8688893]
[1755189211997,0.7,192.54,192.44,31.19634586]
[1755189212215,0.7,192.54,192.42,0.71]
[1755189212502,0.7,192.54,192.48,18.8688893]
[1755189212674,15.10621557,192.53,192.48,18.8688893]
[1755189212879,15.10621557,192.51,192.46,18.8688893]
[1755189213215,18.17615287,192.56,192.49,18.8688893]
[1755189213503,0.7,192.54,192.5,18.8688893]
[1755189213673,18.8688893,192.51,192.45,18.8688893]
[1755189213865,5.19507506,192.49,192.44,18.8688893]
[1755189214066,42.44,192.48,192.42,26.0]
[1755189214296,43.14,192.48,192.44,18.8688893]
[1755189214502,43.14,192.48,192.36,26.0]
[1755189214503,0.7,192.47,192.36,26.0]
[1755189214812,0.7,192.47,192.38,18.8688893]
[1755189214813,18.8688893,192.44,192.38,18.8688893]
[1755189215103,0.7,192.43,192.41,18.8688893]
[1755189215402,0.7,192.46,192.42,18.8688893]
[1755189215700,5.19481981,192.5,192.45,18.8688893]
[1755189215905,5.19481981,192.5,192.39,0.71]
[1755189215906,42.42,192.49,192.39,0.71]
[1755189216126,42.42,192.49,192.48,18.8688893]
[1755189216309,5.19374374,192.54,192.48,18.8688893]
[1755189216482,42.42,192.53,192.52,18.8688893]
[1755189216673,43.12,192.53,192.5,18.8688893]
[1755189217015,0.7,192.52,192.47,18.8688893]
[1755189217183,15.10621557,192.51,192.47,18.8688893]
[1755189217396,0.7,192.5,192.46,18.8688893]
[1755189217717,15.10621557,192.52,192.48,18.8688893]
[1755189217896,47.61507506,192.49,192.46,18.8688893]
[1755189218221,42.42,192.49,192.47,18.8688893]
[1755189218398,43.12,192.49,192.47,18.8688893]
[1755189218593,42.42,192.49,192.44,26.0]
[1755189218785,15.80621557,192.48,192.39,0.71]
[1755189218985,0.7,192.47,192.41,18.8688893]
[1755189219202,0.7,192.47,192.44,18.8688893]
[1755189219391,42.42,192.49,192.46,18.8688893]
[1755189219593,42.42,192.49,192.48,18.8688893]
[1755189222008,42.42,192.49,192.48,24.77423427]
[1755189222221,0.06,192.54,192.48,24.77423427]
[1755189222386,42.44,192.54,192.53,18.8688893]
[1755189224183,0.06,192.54,192.53,24.06288504]
[1755189224498,60.0,192.57,192.56,26.0]
[1755189224697,60.0,192.57,192.56,45.5788893]
[1755189225007,42.38,192.64,192.56,60.68510487]
[1755189225208,42.38,192.64,192.63,18.8688893]
[1755189225714,42.36,192.67,192.63,18.8688893]
[1755189226018,42.36,192.67,192.65,18.8688893]
[1755189226313,42.36,192.67,192.6,5.19210589]
[1755189226693,43.06,192.67,192.6,5.19210589]
[1755189226916,0.7,192.66,192.56,26.0]
[1755189227098,33.97510487,192.65,192.58,18.8688893]
[1755189227419,0.7,192.64,192.61,18.8688893]
[1755189227614,0.7,192.63,192.6,18.8688893]
[1755189227912,31.18989062,192.69,192.62,18.8688893]
[1755189228217,0.7,192.67,192.66,18.8688893]
[1755189228517,61.9088893,192.67,192.52,31.34]
[1755189228819,0.7,192.66,192.56,26.0]
[1755189229124,0.7,192.66,192.62,18.8688893]
[1755189229323,0.7,192.65,192.62,18.8688893]
[1755189229492,42.34,192.67,192.62,18.8688893]
[1755189229708,0.7,192.66,192.56,26.0]
[1755189230015,5.19076044,192.65,192.5,31.34]
[1755189230190,15.80621557,192.64,192.57,18.8688893]
[1755189230513,0.7,192.63,192.6,18.8688893]
[1755189230724,0.7,192.63,192.58,18.8688893]
[1755189230899,0.7,192.62,192.58,18.8688893]
[1755189231085,0.7,192.62,192.6,18.8688893]
[1755189231289,0.7,192.61,192.6,18.8688893]
[1755189231510,0.7,192.61,192.58,18.8688893]
[1755189231790,0.7,192.6,192.58,18.8688893]
[1755189231999,0.7,192.6,192.54,31.19354341]
[1755189232214,5.89134122,192.63,192.59,18.8688893]
[1755189232637,42.34,192.64,192.61,18.8688893]
[1755189232638,0.7,192.62,192.61,18.8688893]
[1755189232812,42.34,192.64,192.61,18.8688893]
[1755189232813,48.23107656,192.64,192.61,18.8688893]
[1755189233130,0.7,192.63,192.59,18.8688893]
[1755189233329,0.7,192.63,192.61,18.8688893]
[1755189233706,0.7,192.63,192.54,44.17785835]
[1755189233914,0.7,192.63,192.6,18.8688893]
[1755189234108,0.7,192.63,192.55,18.17709685]
[1755189234304,0.7,192.67,192.62,18.8688893]
[1755189234610,42.32,192.67,192.65,18.8688893]
[1755189234816,42.32,192.67,192.6,26.0]
[1755189234817,0.7,192.66,192.6,26.0]
[1755189235020,0.7,192.66,192.62,18.8688893]
[1755189235220,47.51028866,192.67,192.62,18.8688893]
[1755189235540,0.7,192.65,192.6,18.8688893]
[1755189235831,18.8688893,192.63,192.57,18.8688893]
[1755189236042,48.21177073,192.62,192.57,18.8688893]
[1755189236253,0.7,192.61,192.53,26.0]
[1755189236406,0.7,192.61,192.52,0.03]
[1755189236603,0.7,192.61,192.57,18.8688893]
[1755189236923,42.3,192.62,192.6,18.8688893]
[1755189237233,42.3,192.62,192.56,26.0]
[1755189237438,42.3,192.62,192.61,18.8688893]
[1755189237935,42.3,192.62,192.56,26.0]
[1755189237936,43.0,192.62,192.58,18.8688893]
[1755189238119,42.3,192.62,192.6,18.8688893]
[1755189238324,0.7,192.61,192.6,18.8688893]
[1755189238540,5.19049102,192.66,192.59,18.8688893]
[1755189238743,43.0,192.65,192.6,18.8688893]
[1755189238919,0.7,192.64,192.6,18.8688893]
[1755189239240,0.7,192.64,192.63,18.8688893]
[1755189239404,0.7,192.64,192.62,18.8688893]
[1755189239602,42.3,192.65,192.63,18.8688893]
[1755189239841,0.7,192.64,192.57,26.0]
[1755189240014,0.7,192.64,192.62,18.8688893]
[1755189240212,42.3,192.65,192.63,18.8688893]
[1755189240438,0.06,192.68,192.64,18.8688893]
[1755189240612,0.06,192.68,192.67,18.8688893]
[1755189241639,0.77,192.68,192.67,18.8688893]
[1755189241944,0.06,192.68,192.67,24.05911092]
[1755189242934,0.06,192.68,192.67,50.05911092]
[1755189243945,1e-08,192.68,192.67,39.16532649]
[1755189244113,24.05426653,192.85,192.7,26.0]
[1755189244320,18.8688893,192.82,192.7,26.0]
[1755189244517,15.10621557,192.79,192.73,18.8688893]
[1755189244819,42.26,192.78,192.74,18.8688893]
[1755189245342,42.26,192.78,192.7,26.0]
[1755189245519,42.26,192.78,192.55,10.0]
[1755189245520,15.10621557,192.75,192.55,10.0]
[1755189245725,33.97510487,192.71,192.65,18.8688893]
[1755189246027,42.26,192.7,192.67,18.8688893]
[1755189246233,42.26,192.7,192.64,18.8688893]
[1755189246234,15.81621557,192.69,192.64,18.8688893]
[1755189246428,0.71,192.68,192.64,18.8688893]
[1755189246643,0.71,192.68,192.66,18.8688893]
[1755189246827,0.77,192.68,192.66,18.8688893]
[1755189247227,0.71,192.67,192.65,18.8688893]
[1755189247551,0.06,192.68,192.65,18.8688893]
[1755189247716,0.06,192.68,192.67,18.8688893]
[1755189247915,0.77,192.68,192.67,18.8688893]
[1755189248143,0.77,192.68,192.62,26.0]
[1755189248511,0.77,192.68,192.65,18.8688893]
[1755189248710,0.77,192.68,192.66,18.8688893]
[1755189248925,0.71,192.67,192.59,5.19237758]
[1755189249132,20.29670659,192.66,192.57,0.03]
[1755189249331,0.06,192.68,192.65,18.8688893]
[1755189249547,42.24,192.66,192.61,26.0]
[1755189249733,0.71,192.65,192.58,5.19264721]
[1755189250036,42.24,192.66,192.61,26.0]
[1755189250633,42.95,192.66,192.65,18.8688893]
[1755189251528,42.95,192.66,192.58,26.0]
[1755189251728,42.95,192.66,192.62,18.8688893]
[1755189251939,0.71,192.65,192.63,18.8688893]
[1755189254119,0.71,192.65,192.62,18.8688893]
[1755189254333,0.71,192.64,192.62,18.8688893]
[1755189255619,0.71,192.64,192.63,18.8688893]
[1755189256255,0.71,192.64,192.62,18.8688893]
[1755189256642,0.71,192.63,192.6,12.00343239]
[1755189256847,42.22,192.62,192.58,26.0]
[1755189257034,42.22,192.62,192.61,12.00343239]
[1755189257627,42.22,192.65,192.61,12.71343239]
[1755189257853,42.22,192.65,192.64,12.00343239]
[1755189258339,42.22,192.65,192.64,17.19446229]
[1755189259125,0.06,192.68,192.67,26.0]
[1755189259358,0.06,192.68,192.67,38.00343239]
[1755189259554,0.06,192.68,192.67,12.00343239]
[1755189259755,0.06,192.68,192.67,38.00343239]
[1755189260056,0.06,192.68,192.67,12.00343239]
[1755189260231,0.06,192.68,192.67,17.19365401]
[1755189260553,0.06,192.68,192.67,17.90365401]
[1755189261059,0.06,192.68,192.67,43.90365401]
[1755189261351,1e-08,192.68,192.67,43.90365401]
[1755189261560,0.71,192.81,192.7,26.0]
[1755189261727,0.71,192.81,192.71,26.71]
[1755189261931,0.71,192.82,192.72,0.71]
[1755189262124,5.18645298,192.81,192.76,12.00343239]
[1755189262452,54.91343239,192.8,192.73,12.00343239]
[1755189262652,42.91,192.8,192.75,12.00343239]
[1755189262853,0.71,192.79,192.76,12.00343239]
[1755189263063,0.71,192.78,192.67,26.0]
[1755189263248,0.71,192.78,192.75,12.00343239]
[1755189263437,0.71,192.78,192.68,26.71]
[1755189263633,42.2,192.8,192.76,12.00343239]
[1755189263954,0.71,192.79,192.76,12.00343239]
[1755189264260,0.71,192.78,192.74,12.00343239]
[1755189264447,27.10964796,192.77,192.71,12.00343239]
[1755189264761,15.10621557,192.75,192.65,5.19076044]
[1755189264946,15.10621557,192.73,192.68,12.00343239]
[1755189265131,0.71,192.72,192.68,12.00343239]
[1755189265332,0.71,192.72,192.7,12.00343239]
[1755189265532,42.18,192.74,192.65,5.19076044]
[1755189265736,42.18,192.74,192.7,12.00343239]
[1755189266046,0.71,192.73,192.7,12.00343239]
[1755189266257,47.36848219,192.74,192.65,5.19076044]
[1755189266461,0.71,192.72,192.69,12.00343239]
[1755189266755,0.71,192.75,192.71,12.00343239]
[1755189266940,42.16,192.74,192.71,12.00343239]
[1755189267140,0.71,192.73,192.71,12.00343239]
[1755189267332,0.71,192.72,192.69,12.00343239]
[1755189267531,0.71,192.71,192.68,12.00343239]
[1755189267731,0.71,192.71,192.69,12.00343239]
[1755189267945,42.16,192.74,192.65,5.19076044]
[1755189267946,42.87,192.74,192.7,12.00343239]
[1755189268134,42.87,192.74,192.71,12.00343239]
[1755189268674,15.10621557,192.7,192.62,0.03]
[1755189268844,15.10621557,192.68,192.62,0.03]
[1755189269036,0.71,192.67,192.62,12.03343239]
[1755189269235,0.71,192.67,192.63,12.00343239]
[1755189269535,15.10621557,192.68,192.63,12.00343239]
[1755189269753,0.71,192.66,192.63,12.00343239]
[1755189269948,42.16,192.65,192.63,12.00343239]
[1755189270350,42.16,192.65,192.64,12.00343239]
[1755189270561,42.16,192.65,192.62,12.03343239]
[1755189271149,42.16,192.65,192.64,12.00343239]
[1755189271449,42.16,192.65,192.63,12.00343239]
[1755189271649,42.16,192.65,192.62,12.03343239]
[1755189271844,0.66,192.64,192.62,0.03]
[1755189272351,0.66,192.63,192.62,0.03]
[1755189272567,5.1910299,192.64,192.62,0.03]
[1755189272871,42.16,192.65,192.62,0.03]
[1755189273050,48.01084051,192.65,192.62,0.03]
[1755189273248,59.3542729,192.65,192.62,0.03]
[1755189273447,12.00343239,192.63,192.62,0.03]
[1755189273760,27.76964796,192.63,192.62,0.03]
[1755189274155,73.35084051,192.65,192.62,0.03]
[1755189274476,5.19025842,192.67,192.62,0.03]
[1755189274658,0.66,192.65,192.62,12.03343239]
[1755189275050,42.14,192.66,192.62,0.03]
[1755189275273,42.14,192.66,192.62,12.03343239]
[1755189275577,42.8,192.66,192.62,12.03343239]
[1755189275970,0.66,192.65,192.62,0.03]
[1755189276157,42.14,192.66,192.62,0.03]
[1755189276364,5.85124785,192.64,192.62,0.03]
[1755189276763,5.19078456,192.65,192.62,0.03]
[1755189277076,47.99055506,192.66,192.62,0.03]
[1755189277469,0.66,192.65,192.62,0.03]
[1755189277679,47.33055506,192.66,192.62,0.03]
[1755189277680,27.10964796,192.63,192.62,0.03]
[1755189277851,27.76964796,192.63,192.62,0.03]
[1755189278164,27.76964796,192.63,192.58,0.03]
[1755189278165,15.10621557,192.59,192.58,0.03]
[1755189278376,41.10621557,192.57,192.52,0.03]
[1755189278572,27.76964796,192.56,192.52,0.03]
[1755189279159,69.88964796,192.56,192.52,0.03]
[1755189279359,12.00343239,192.57,192.52,0.03]
[1755189279661,42.12,192.56,192.52,12.03343239]
[1755189279985,42.12,192.56,192.52,0.03]
[1755189281295,5.1910299,192.64,192.55,12.68343239]
[1755189281582,42.12,192.63,192.59,12.00343239]
[1755189281792,42.12,192.63,192.6,12.00343239]
[1755189281978,42.78,192.63,192.57,12.00343239]
[1755189282179,42.12,192.63,192.6,12.00343239]
[1755189282369,42.12,192.63,192.62,12.00343239]
[1755189283154,5.24998314,192.68,192.62,12.00343239]
[1755189283364,0.06,192.68,192.66,12.00343239]
[1755189283585,0.06,192.68,192.67,12.00343239]
[1755189283757,42.18,192.68,192.67,12.00343239]
[1755189284271,42.18,192.68,192.61,26.0]
[1755189284272,42.84,192.68,192.65,12.00343239]
[1755189284470,42.84,192.68,192.64,12.00343239]
[1755189284782,42.84,192.68,192.65,18.62001689]
[1755189284955,42.18,192.68,192.65,18.62001689]